[Event "*** Titled Tuesday Blitz"]
[Site "Chess.com"]
[Date "2020.10.20"]
[Round "9"]
[White "Yoshikrov"]
[Black "Rubinstein_Akiba"]
[Result "0-1"]
[WhiteElo "2139"]
[BlackElo "2380"]
[TimeControl "180+1"]
[EndTime "11:48:36 PDT"]
[Termination "Rubinstein_Akiba won by resignation"]

1. e4 {[%clk 0:03:00.9]} 1... c5 {[%clk 0:02:58]} 2. Nf3 {[%clk 0:03:00.5]} 2...
d6 {[%clk 0:02:57.9]} 3. d4 {[%clk 0:03:00.8]} 3... cxd4 {[%clk 0:02:58.8]} 4.
Nxd4 {[%clk 0:03:01.6]} 4... Nf6 {[%clk 0:02:58]} 5. Nc3 {[%clk 0:03:01.8]} 5...
a6 {[%clk 0:02:56.6]} 6. Be3 {[%clk 0:03:01]} 6... e5 {[%clk 0:02:55.7]} 7. Nb3
{[%clk 0:03:00.6]} 7... Be6 {[%clk 0:02:53.7]} 8. f3 {[%clk 0:03:00.9]} 8...
Nbd7 {[%clk 0:02:49.3]} 9. Qd2 {[%clk 0:03:00.5]} 9... h5 {[%clk 0:02:47.5]} 10.
O-O-O {[%clk 0:03:00.2]} 10... b5 {[%clk 0:02:47.2]} 11. Kb1 {[%clk 0:02:52.2]}
11... Qc7 {[%clk 0:02:41.7]} 12. g3 {[%clk 0:02:47.5]} 12... Rc8 {[%clk
0:02:34.8]} 13. Nd5 {[%clk 0:02:44.8]} 13... Bxd5 {[%clk 0:02:14.5]} 14. exd5
{[%clk 0:02:45.7]} 14... Nb6 {[%clk 0:02:14.3]} 15. Bxb6 {[%clk 0:02:39]} 15...
Qxb6 {[%clk 0:02:15.2]} 16. Bd3 {[%clk 0:02:32.4]} 16... g6 {[%clk 0:02:06.1]}
17. Rhe1 {[%clk 0:02:23.1]} 17... Bh6 {[%clk 0:01:44.7]} 18. Qe2 {[%clk
0:01:44.6]} 18... O-O {[%clk 0:01:33.5]} 19. g4 {[%clk 0:01:40.9]} 19... hxg4
{[%clk 0:01:16.7]} 20. fxg4 {[%clk 0:01:40.2]} 20... Nxd5 {[%clk 0:01:17.2]} 21.
h4 {[%clk 0:01:24.3]} 21... Ne3 {[%clk 0:01:03.5]} 22. g5 {[%clk 0:01:12.7]}
22... Nxd1 {[%clk 0:00:55.6]} 23. gxh6 {[%clk 0:01:12.3]} 23... Nf2 {[%clk
0:00:56.1]} 24. h5 {[%clk 0:00:58.4]} 24... Nxd3 {[%clk 0:00:45.3]} 25. h7+
{[%clk 0:00:55]} 25... Kh8 {[%clk 0:00:29.9]} 26. Qxd3 {[%clk 0:00:55.4]} 26...
Qf2 {[%clk 0:00:28.5]} 27. Rf1 {[%clk 0:00:44.8]} 27... Qg2 {[%clk 0:00:20.4]}
28. Rd1 {[%clk 0:00:33.7]} 28... d5 {[%clk 0:00:17.5]} 29. a3 {[%clk 0:00:31]}
29... Qe4 {[%clk 0:00:14.2]} 30. Qd2 {[%clk 0:00:28.5]} 30... Qf5 {[%clk
0:00:14.2]} 31. hxg6 {[%clk 0:00:28.5]} 31... fxg6 {[%clk 0:00:14.8]} 32. Qxd5
{[%clk 0:00:26.1]} 32... Rxc2 {[%clk 0:00:11]} 33. Ka2 {[%clk 0:00:25.3]} 33...
Rcc8 {[%clk 0:00:09.1]} 34. Qb7 {[%clk 0:00:20.3]} 34... Qf7 {[%clk 0:00:08]}
35. Rd7 {[%clk 0:00:19.4]} 35... Qe6 {[%clk 0:00:07.9]} 36. Rg7 {[%clk
0:00:18.7]} 36... Rce8 {[%clk 0:00:05.2]} 37. Rg8+ {[%clk 0:00:16.9]} 37... Rxg8
{[%clk 0:00:01.1]} 38. hxg8=Q+ {[%clk 0:00:17.8]} 38... Kxg8 {[%clk 0:00:02]}
39. Qe4 {[%clk 0:00:16.8]} 39... a5 {[%clk 0:00:01.9]} 40. a4 {[%clk 0:00:15]}
40... bxa4 {[%clk 0:00:01.7]} 41. Qxa4 {[%clk 0:00:15.6]} 41... Qe7 {[%clk
0:00:02.6]} 42. Qxa5 {[%clk 0:00:14]} 42... Qf7 {[%clk 0:00:03.5]} 43. Qb6
{[%clk 0:00:11.7]} 43... Re7 {[%clk 0:00:04.1]} 44. Qd8+ {[%clk 0:00:11.3]}
44... Kg7 {[%clk 0:00:03.5]} 45. Ka3 {[%clk 0:00:10.9]} 45... Ra7+ {[%clk
0:00:03.5]} 46. Kb4 {[%clk 0:00:10.5]} 46... Rb7+ {[%clk 0:00:03.8]} 47. Kc5
{[%clk 0:00:10.7]} 47... Rxb3 {[%clk 0:00:02.6]} 48. Qd2 {[%clk 0:00:09.2]}
48... Rb7 {[%clk 0:00:03.5]} 49. b4 {[%clk 0:00:09]} 49... Rc7+ {[%clk
0:00:04.4]} 50. Kb5 {[%clk 0:00:09.4]} 50... Rb7+ {[%clk 0:00:03.6]} 51. Ka4
{[%clk 0:00:09.4]} 51... Qd7+ {[%clk 0:00:03.8]} 52. Ka3 {[%clk 0:00:09.3]}
52... Qxd2 {[%clk 0:00:03.4]} 0-1

[Event "*** Titled Tuesday Blitz"]
[Site "Chess.com"]
[Date "2020.10.20"]
[Round "9"]
[White "GothamChess"]
[Black "Ladislav1969"]
[Result "1-0"]
[WhiteElo "2608"]
[BlackElo "2431"]
[TimeControl "180+1"]
[EndTime "11:48:39 PDT"]
[Termination "GothamChess won by checkmate"]

1. e4 {[%clk 0:03:00.9]} 1... c5 {[%clk 0:02:59.7]} 2. a3 {[%clk 0:03:00.8]}
2... e6 {[%clk 0:03:00.4]} 3. b4 {[%clk 0:03:00.7]} 3... cxb4 {[%clk 0:02:59.9]}
4. axb4 {[%clk 0:03:01.6]} 4... Bxb4 {[%clk 0:02:56.6]} 5. c3 {[%clk 0:03:01.9]}
5... Be7 {[%clk 0:02:54.4]} 6. d4 {[%clk 0:03:02.6]} 6... d6 {[%clk 0:02:53.8]}
7. Bd3 {[%clk 0:03:02.5]} 7... Nf6 {[%clk 0:02:52.8]} 8. f4 {[%clk 0:03:02.6]}
8... e5 {[%clk 0:02:50.2]} 9. Nf3 {[%clk 0:03:02.4]} 9... Nbd7 {[%clk
0:02:38.5]} 10. O-O {[%clk 0:03:01.5]} 10... O-O {[%clk 0:02:37.6]} 11. h3
{[%clk 0:02:54.4]} 11... exf4 {[%clk 0:02:26.1]} 12. Bxf4 {[%clk 0:02:54]} 12...
b6 {[%clk 0:02:18.7]} 13. Qe2 {[%clk 0:02:43.2]} 13... Re8 {[%clk 0:02:14.2]}
14. Nbd2 {[%clk 0:02:40.7]} 14... Bb7 {[%clk 0:02:07]} 15. Qf2 {[%clk
0:02:35.8]} 15... Nf8 {[%clk 0:01:55.3]} 16. c4 {[%clk 0:02:07.7]} 16... Ng6
{[%clk 0:01:52.9]} 17. Be3 {[%clk 0:02:05.6]} 17... Bf8 {[%clk 0:01:45.7]} 18.
Qg3 {[%clk 0:01:47.7]} 18... Nxe4 {[%clk 0:01:42]} 19. Bxe4 {[%clk 0:01:37.1]}
19... Bxe4 {[%clk 0:01:41.9]} 20. Ng5 {[%clk 0:01:37.5]} 20... Bd3 {[%clk
0:01:29.2]} 21. Nxf7 {[%clk 0:01:24.4]} 21... Qe7 {[%clk 0:01:22.5]} 22. Rf3
{[%clk 0:01:19.8]} 22... Be2 {[%clk 0:01:14.3]} 23. Bg5 {[%clk 0:01:19.9]} 23...
Qe6 {[%clk 0:01:04.2]} 24. Rf2 {[%clk 0:01:15.7]} 24... Bxc4 {[%clk 0:01:00.9]}
25. h4 {[%clk 0:01:13.2]} 25... Bd5 {[%clk 0:00:35.8]} 26. h5 {[%clk 0:01:10.6]}
26... Nh8 {[%clk 0:00:34.5]} 27. Nh6+ {[%clk 0:00:29.4]} 27... gxh6 {[%clk
0:00:31.6]} 28. Bf6+ {[%clk 0:00:30]} 28... Ng6 {[%clk 0:00:21.7]} 29. hxg6
{[%clk 0:00:29.9]} 29... Qe3 {[%clk 0:00:17.2]} 30. Qg4 {[%clk 0:00:18.9]} 30...
Be6 {[%clk 0:00:14.3]} 31. Qh5 {[%clk 0:00:09.8]} 31... Bg7 {[%clk 0:00:11]} 32.
gxh7+ {[%clk 0:00:05.1]} 32... Kxh7 {[%clk 0:00:11.1]} 33. Nf1 {[%clk
0:00:04.4]} 33... Qe4 {[%clk 0:00:07.6]} 34. Bxg7 {[%clk 0:00:02.5]} 34... Kxg7
{[%clk 0:00:07]} 35. Ng3 {[%clk 0:00:02.1]} 35... Qg6 {[%clk 0:00:06.9]} 36. Qh2
{[%clk 0:00:02.7]} 36... Bg4 {[%clk 0:00:06]} 37. Raf1 {[%clk 0:00:02.1]} 37...
Rf8 {[%clk 0:00:05.8]} 38. Rf4 {[%clk 0:00:01.3]} 38... Rxf4 {[%clk 0:00:05.8]}
39. Rxf4 {[%clk 0:00:02.2]} 39... Rf8 {[%clk 0:00:05.3]} 40. Nf1 {[%clk
0:00:01.8]} 40... h5 {[%clk 0:00:03.6]} 41. Rxf8 {[%clk 0:00:01.7]} 41... Kxf8
{[%clk 0:00:03.9]} 42. Qf4+ {[%clk 0:00:02.4]} 42... Ke7 {[%clk 0:00:04.2]} 43.
d5 {[%clk 0:00:02.4]} 43... Qf6 {[%clk 0:00:04.9]} 44. Qb4 {[%clk 0:00:02.4]}
44... Qe5 {[%clk 0:00:05.5]} 45. Qc4 {[%clk 0:00:02.5]} 45... Qe2 {[%clk
0:00:04.8]} 46. Qc7+ {[%clk 0:00:02.4]} 46... Bd7 {[%clk 0:00:04.2]} 47. Qc3
{[%clk 0:00:02.1]} 47... Bb5 {[%clk 0:00:03.6]} 48. Qg7+ {[%clk 0:00:01.9]}
48... Ke8 {[%clk 0:00:03.1]} 49. Ng3 {[%clk 0:00:02]} 49... Kd8 {[%clk 0:00:04]}
50. Nxe2 {[%clk 0:00:02.2]} 50... Bxe2 {[%clk 0:00:03.1]} 51. Qg5+ {[%clk
0:00:02.9]} 51... Kc7 {[%clk 0:00:02.5]} 52. Qg7+ {[%clk 0:00:03.6]} 52... Kc8
{[%clk 0:00:02.2]} 53. Qxa7 {[%clk 0:00:03.8]} 53... Kd8 {[%clk 0:00:01.7]} 54.
Qxb6+ {[%clk 0:00:04.3]} 54... Ke7 {[%clk 0:00:02.6]} 55. Qc7+ {[%clk
0:00:04.7]} 55... Kf6 {[%clk 0:00:03.5]} 56. Qxd6+ {[%clk 0:00:05.5]} 56... Kf5
{[%clk 0:00:04.3]} 57. Qe6+ {[%clk 0:00:06]} 57... Kg5 {[%clk 0:00:03.8]} 58.
Qxe2 {[%clk 0:00:06.2]} 58... h4 {[%clk 0:00:04.3]} 59. d6 {[%clk 0:00:06.5]}
59... h3 {[%clk 0:00:05]} 60. d7 {[%clk 0:00:06.9]} 60... h2+ {[%clk 0:00:05.6]}
61. Kxh2 {[%clk 0:00:06.7]} 61... Kh4 {[%clk 0:00:05.6]} 62. d8=Q# {[%clk
0:00:07]} 1-0

[Event "*** Titled Tuesday Blitz"]
[Site "Chess.com"]
[Date "2020.10.20"]
[Round "9"]
[White "Shuvalov"]
[Black "mirceaparligras"]
[Result "0-1"]
[WhiteElo "2482"]
[BlackElo "2655"]
[TimeControl "180+1"]
[EndTime "11:48:42 PDT"]
[Termination "mirceaparligras won by checkmate"]

1. Nf3 {[%clk 0:02:54.1]} 1... d5 {[%clk 0:02:59.5]} 2. c4 {[%clk 0:02:53.8]}
2... d4 {[%clk 0:02:59.4]} 3. b4 {[%clk 0:02:53.4]} 3... g5 {[%clk 0:02:54.5]}
4. Bb2 {[%clk 0:02:51.9]} 4... Bg7 {[%clk 0:02:52.2]} 5. Nxg5 {[%clk 0:02:51.9]}
5... e5 {[%clk 0:02:51.3]} 6. Ne4 {[%clk 0:02:51.8]} 6... f5 {[%clk 0:02:49.2]}
7. Nc5 {[%clk 0:02:51.9]} 7... a5 {[%clk 0:02:40.4]} 8. bxa5 {[%clk 0:02:49.3]}
8... Rxa5 {[%clk 0:02:32]} 9. Nb3 {[%clk 0:02:48.6]} 9... Ra6 {[%clk 0:02:29.1]}
10. e3 {[%clk 0:02:45.6]} 10... dxe3 {[%clk 0:02:07]} 11. fxe3 {[%clk
0:02:44.7]} 11... Qh4+ {[%clk 0:01:58.6]} 12. g3 {[%clk 0:02:40.8]} 12... Qe4
{[%clk 0:01:57.9]} 13. Rg1 {[%clk 0:02:36.3]} 13... Rh6 {[%clk 0:01:49.3]} 14.
Rg2 {[%clk 0:02:30.9]} 14... Qc6 {[%clk 0:01:36]} 15. d4 {[%clk 0:02:18.3]}
15... exd4 {[%clk 0:01:30.6]} 16. exd4 {[%clk 0:02:16.4]} 16... Ne7 {[%clk
0:01:25]} 17. d5 {[%clk 0:01:51]} 17... Qg6 {[%clk 0:01:24.7]} 18. Bxg7 {[%clk
0:01:41]} 18... Qxg7 {[%clk 0:01:25.6]} 19. Qd4 {[%clk 0:01:41.5]} 19... O-O
{[%clk 0:01:16.3]} 20. Qxg7+ {[%clk 0:01:40.3]} 20... Kxg7 {[%clk 0:01:17.2]}
21. Nc3 {[%clk 0:01:40.1]} 21... Na6 {[%clk 0:01:01]} 22. O-O-O {[%clk
0:01:36.6]} 22... b6 {[%clk 0:00:57.6]} 23. Re1 {[%clk 0:01:30.5]} 23... Ng8
{[%clk 0:00:56.6]} 24. Nb5 {[%clk 0:01:19.6]} 24... Bd7 {[%clk 0:00:52.2]} 25.
N5d4 {[%clk 0:01:18.6]} 25... Nf6 {[%clk 0:00:44]} 26. Bd3 {[%clk 0:01:13.9]}
26... Ng4 {[%clk 0:00:39.4]} 27. Re7+ {[%clk 0:00:57.1]} 27... Rf7 {[%clk
0:00:39.2]} 28. Rxf7+ {[%clk 0:00:57.4]} 28... Kxf7 {[%clk 0:00:40.1]} 29. Bxf5
{[%clk 0:00:57.7]} 29... Bxf5 {[%clk 0:00:33]} 30. Nxf5 {[%clk 0:00:58.6]} 30...
Rxh2 {[%clk 0:00:32.8]} 31. Rxh2 {[%clk 0:00:57.5]} 31... Nxh2 {[%clk
0:00:33.7]} 32. Kd2 {[%clk 0:00:51.8]} 32... Kf6 {[%clk 0:00:33.3]} 33. Nfd4
{[%clk 0:00:51.3]} 33... Kg5 {[%clk 0:00:29.2]} 34. Ke3 {[%clk 0:00:50.7]} 34...
Ng4+ {[%clk 0:00:27.3]} 35. Ke4 {[%clk 0:00:49.2]} 35... Nf2+ {[%clk 0:00:21.8]}
36. Ke5 {[%clk 0:00:46.7]} 36... Kg4 {[%clk 0:00:20]} 37. Ne2 {[%clk 0:00:35.9]}
37... h5 {[%clk 0:00:18.9]} 38. Ke6 {[%clk 0:00:35.4]} 38... Nh1 {[%clk
0:00:18.8]} 39. Kd7 {[%clk 0:00:35.2]} 39... Nxg3 {[%clk 0:00:18.8]} 40. Ng1
{[%clk 0:00:30.4]} 40... h4 {[%clk 0:00:17.3]} 41. Kc6 {[%clk 0:00:28.4]} 41...
Ne2 {[%clk 0:00:10.5]} 42. Nxe2 {[%clk 0:00:26.4]} 42... h3 {[%clk 0:00:11]} 43.
Kb7 {[%clk 0:00:25.4]} 43... Nc5+ {[%clk 0:00:10.5]} 44. Kxc7 {[%clk 0:00:25.4]}
44... h2 {[%clk 0:00:09.6]} 45. Kxb6 {[%clk 0:00:25.2]} 45... Nxb3 {[%clk
0:00:09.1]} 46. axb3 {[%clk 0:00:26.1]} 46... h1=Q {[%clk 0:00:09.5]} 47. d6
{[%clk 0:00:24.6]} 47... Qd1 {[%clk 0:00:09]} 48. Kc7 {[%clk 0:00:20.9]} 48...
Qxe2 {[%clk 0:00:08.6]} 49. d7 {[%clk 0:00:21.3]} 49... Qe5+ {[%clk 0:00:08.7]}
50. Kc6 {[%clk 0:00:20.9]} 50... Qb8 {[%clk 0:00:08.3]} 51. b4 {[%clk
0:00:19.6]} 51... Kf5 {[%clk 0:00:08.6]} 52. b5 {[%clk 0:00:19.8]} 52... Ke6
{[%clk 0:00:08.7]} 53. b6 {[%clk 0:00:19.4]} 53... Qd6+ {[%clk 0:00:08.9]} 54.
Kb7 {[%clk 0:00:19.3]} 54... Qxd7+ {[%clk 0:00:09.3]} 55. Ka8 {[%clk 0:00:17.4]}
55... Qa4+ {[%clk 0:00:09.1]} 56. Kb7 {[%clk 0:00:16.5]} 56... Kd7 {[%clk
0:00:09.6]} 57. c5 {[%clk 0:00:16.2]} 57... Qc6+ {[%clk 0:00:09.6]} 58. Ka7
{[%clk 0:00:16.4]} 58... Qxc5 {[%clk 0:00:09.6]} 59. Kb7 {[%clk 0:00:15.3]}
59... Qa5 {[%clk 0:00:08.6]} 60. Kb8 {[%clk 0:00:14]} 60... Qxb6+ {[%clk
0:00:08.9]} 61. Ka8 {[%clk 0:00:14.4]} 61... Qb5 {[%clk 0:00:09.4]} 62. Ka7
{[%clk 0:00:13.1]} 62... Kc7 {[%clk 0:00:10]} 63. Ka8 {[%clk 0:00:12.7]} 63...
Qa4# {[%clk 0:00:10.6]} 0-1

[Event "*** Titled Tuesday Blitz"]
[Site "Chess.com"]
[Date "2020.10.20"]
[Round "9"]
[White "eljanov"]
[Black "Sharpchess22"]
[Result "1-0"]
[WhiteElo "2891"]
[BlackElo "2765"]
[TimeControl "180+1"]
[EndTime "11:48:46 PDT"]
[Termination "eljanov won by resignation"]

1. Nf3 {[%clk 0:03:00.9]} 1... Nf6 {[%clk 0:02:59.5]} 2. c4 {[%clk 0:03:00.3]}
2... e6 {[%clk 0:02:59.4]} 3. Nc3 {[%clk 0:03:00]} 3... Bb4 {[%clk 0:02:59.2]}
4. Qc2 {[%clk 0:02:59.7]} 4... c5 {[%clk 0:02:59.2]} 5. a3 {[%clk 0:02:59]} 5...
Ba5 {[%clk 0:02:59]} 6. e3 {[%clk 0:02:56.8]} 6... Nc6 {[%clk 0:02:58.1]} 7. Be2
{[%clk 0:02:53.8]} 7... d6 {[%clk 0:02:58]} 8. d4 {[%clk 0:02:46.7]} 8... O-O
{[%clk 0:02:53]} 9. O-O {[%clk 0:02:45.8]} 9... h6 {[%clk 0:02:51.8]} 10. Rd1
{[%clk 0:02:37.1]} 10... Bxc3 {[%clk 0:02:43.6]} 11. Qxc3 {[%clk 0:02:36.4]}
11... Qc7 {[%clk 0:02:43.5]} 12. b4 {[%clk 0:02:27.6]} 12... Ne7 {[%clk
0:02:20.1]} 13. Bb2 {[%clk 0:02:16.7]} 13... b6 {[%clk 0:02:17.1]} 14. dxc5
{[%clk 0:01:58]} 14... bxc5 {[%clk 0:02:09.7]} 15. b5 {[%clk 0:01:54.8]} 15...
Bb7 {[%clk 0:02:07.7]} 16. a4 {[%clk 0:01:55.1]} 16... Nf5 {[%clk 0:01:57.4]}
17. a5 {[%clk 0:01:46.4]} 17... Rac8 {[%clk 0:01:46.6]} 18. Qc2 {[%clk
0:01:42.6]} 18... Qe7 {[%clk 0:01:37.6]} 19. Nd2 {[%clk 0:01:28.4]} 19... d5
{[%clk 0:01:30.5]} 20. cxd5 {[%clk 0:01:22.5]} 20... Bxd5 {[%clk 0:01:30]} 21.
e4 {[%clk 0:01:16.2]} 21... Nd4 {[%clk 0:01:29.7]} 22. Bxd4 {[%clk 0:01:16.2]}
22... cxd4 {[%clk 0:01:30.1]} 23. Qd3 {[%clk 0:01:16.8]} 23... Ba8 {[%clk
0:01:08.9]} 24. Qxd4 {[%clk 0:01:17.1]} 24... Rfd8 {[%clk 0:01:07.2]} 25. Qe3
{[%clk 0:01:17.3]} 25... Qb4 {[%clk 0:01:06.8]} 26. f3 {[%clk 0:01:09.4]} 26...
Rc3 {[%clk 0:01:06.3]} 27. Qxa7 {[%clk 0:01:08.1]} 27... Rc2 {[%clk 0:01:06.5]}
28. Nf1 {[%clk 0:01:02.7]} 28... Rdc8 {[%clk 0:01:04.4]} 29. Bd3 {[%clk
0:00:57.6]} 29... Rb2 {[%clk 0:01:04.1]} 30. Rac1 {[%clk 0:00:55.1]} 30... Rf8
{[%clk 0:00:59.1]} 31. a6 {[%clk 0:00:50.6]} 31... Nh5 {[%clk 0:00:57.9]} 32.
Qc5 {[%clk 0:00:49.9]} 32... Qb3 {[%clk 0:00:53.4]} 33. Qc3 {[%clk 0:00:49.5]}
33... Qa2 {[%clk 0:00:49.8]} 34. Rc2 {[%clk 0:00:47.4]} 34... Rxc2 {[%clk
0:00:50]} 35. Qxc2 {[%clk 0:00:47.8]} 35... Qa3 {[%clk 0:00:50.1]} 36. g3 {[%clk
0:00:43]} 36... Qa5 {[%clk 0:00:46.9]} 37. Qc5 {[%clk 0:00:39.5]} 37... Nf6
{[%clk 0:00:45.5]} 38. Be2 {[%clk 0:00:37.9]} 38... Qa2 {[%clk 0:00:40.7]} 39.
Rd2 {[%clk 0:00:38]} 39... Qa5 {[%clk 0:00:40.7]} 40. Rc2 {[%clk 0:00:35.6]}
40... Nd7 {[%clk 0:00:35.1]} 41. Qc7 {[%clk 0:00:31.5]} 41... Qa4 {[%clk
0:00:35.5]} 42. Rd2 {[%clk 0:00:23.5]} 42... Nf6 {[%clk 0:00:32.4]} 43. b6
{[%clk 0:00:22]} 43... Nxe4 {[%clk 0:00:32.3]} 44. fxe4 {[%clk 0:00:20.1]} 44...
Bxe4 {[%clk 0:00:28.5]} 45. b7 {[%clk 0:00:18.7]} 45... Qb4 {[%clk 0:00:27.8]}
46. Qd6 {[%clk 0:00:14.1]} 46... Qb3 {[%clk 0:00:18]} 47. Qd4 {[%clk 0:00:14]}
47... Bxb7 {[%clk 0:00:16.5]} 48. Rb2 {[%clk 0:00:12.6]} 48... Qd5 {[%clk
0:00:16.5]} 49. Qxd5 {[%clk 0:00:11.3]} 49... Bxd5 {[%clk 0:00:16.9]} 50. Ne3
{[%clk 0:00:11.5]} 50... Be4 {[%clk 0:00:17.5]} 51. Kf2 {[%clk 0:00:10.9]} 51...
f5 {[%clk 0:00:18]} 52. Bf3 {[%clk 0:00:10.5]} 52... Ra8 {[%clk 0:00:16.7]} 53.
Bxe4 {[%clk 0:00:10.2]} 53... fxe4 {[%clk 0:00:17.1]} 54. Ra2 {[%clk 0:00:10.4]}
54... Ra7 {[%clk 0:00:17.3]} 55. Nc4 {[%clk 0:00:10.5]} 55... Kf7 {[%clk
0:00:17.9]} 56. Nd6+ {[%clk 0:00:10.8]} 56... Kf8 {[%clk 0:00:17.9]} 57. Nb5
{[%clk 0:00:11]} 57... Ra8 {[%clk 0:00:18]} 58. a7 {[%clk 0:00:11.3]} 58... Ke7
{[%clk 0:00:18.5]} 59. Nc7 {[%clk 0:00:11.5]} 59... Rf8+ {[%clk 0:00:19.4]} 60.
Ke3 {[%clk 0:00:11.3]} 60... Rc8 {[%clk 0:00:19.4]} 61. a8=Q {[%clk 0:00:10.9]}
61... Rxc7 {[%clk 0:00:19.9]} 62. Ra7 {[%clk 0:00:10.4]} 62... Rxa7 {[%clk
0:00:19.8]} 63. Qxa7+ {[%clk 0:00:10.8]} 63... Kf6 {[%clk 0:00:20.7]} 64. Kxe4
{[%clk 0:00:11.3]} 64... g6 {[%clk 0:00:21.1]} 65. h4 {[%clk 0:00:11.1]} 65...
h5 {[%clk 0:00:21.2]} 66. Qh7 {[%clk 0:00:09.8]} 66... e5 {[%clk 0:00:20.7]} 67.
Qh8+ {[%clk 0:00:09]} 67... Kf7 {[%clk 0:00:20.9]} 68. Kxe5 {[%clk 0:00:09]}
68... Ke7 {[%clk 0:00:21.3]} 69. Qg7+ {[%clk 0:00:08.9]} 1-0

[Event "*** Titled Tuesday Blitz"]
[Site "Chess.com"]
[Date "2020.10.20"]
[Round "9"]
[White "KerryStead"]
[Black "shriyanasmallya"]
[Result "1-0"]
[WhiteElo "2028"]
[BlackElo "1655"]
[TimeControl "180+1"]
[EndTime "11:48:48 PDT"]
[Termination "KerryStead won by checkmate"]

1. d4 {[%clk 0:03:00.2]} 1... d5 {[%clk 0:02:59.6]} 2. e4 {[%clk 0:03:00.1]}
2... dxe4 {[%clk 0:02:59.4]} 3. Nc3 {[%clk 0:02:59.7]} 3... Nf6 {[%clk
0:02:58.8]} 4. f3 {[%clk 0:02:59.9]} 4... exf3 {[%clk 0:02:58.5]} 5. Nxf3 {[%clk
0:02:59.9]} 5... e6 {[%clk 0:02:58]} 6. Bg5 {[%clk 0:02:59.1]} 6... Be7 {[%clk
0:02:58.1]} 7. Bd3 {[%clk 0:02:58.9]} 7... h6 {[%clk 0:02:57]} 8. Bh4 {[%clk
0:02:57]} 8... g5 {[%clk 0:02:55.4]} 9. Bg3 {[%clk 0:02:53.3]} 9... Bd6 {[%clk
0:02:50.8]} 10. Ne5 {[%clk 0:02:49.2]} 10... Bxe5 {[%clk 0:02:45]} 11. Bxe5
{[%clk 0:02:49]} 11... Nbd7 {[%clk 0:02:36.4]} 12. O-O {[%clk 0:02:47.1]} 12...
Nxe5 {[%clk 0:02:34.6]} 13. dxe5 {[%clk 0:02:47.1]} 13... Nd5 {[%clk 0:02:34.7]}
14. Ne4 {[%clk 0:02:45.2]} 14... Ne3 {[%clk 0:02:30.2]} 15. Qh5 {[%clk
0:02:39.9]} 15... Nxf1 {[%clk 0:02:28.2]} 16. Rxf1 {[%clk 0:02:32]} 16... Qe7
{[%clk 0:02:28]} 17. Nf6+ {[%clk 0:02:31.3]} 17... Kf8 {[%clk 0:02:24.4]} 18. h4
{[%clk 0:02:29]} 18... gxh4 {[%clk 0:02:22.4]} 19. Rf4 {[%clk 0:02:23.4]} 19...
Qc5+ {[%clk 0:02:19.5]} 20. Kh2 {[%clk 0:02:17.2]} 20... Qe7 {[%clk 0:02:05.7]}
21. Rxh4 {[%clk 0:02:10.7]} 21... Qc5 {[%clk 0:02:01.9]} 22. Rf4 {[%clk
0:02:02.8]} 22... Qe7 {[%clk 0:01:52.6]} 23. Nh7+ {[%clk 0:01:35.1]} 23... Ke8
{[%clk 0:01:42.2]} 24. Qxh6 {[%clk 0:01:26.4]} 24... Kd8 {[%clk 0:01:22.4]} 25.
Qg7 {[%clk 0:01:24.1]} 25... Re8 {[%clk 0:01:13.3]} 26. Nf6 {[%clk 0:01:09.2]}
26... Bd7 {[%clk 0:00:58.7]} 27. Nxe8 {[%clk 0:00:51]} 27... Bxe8 {[%clk
0:00:57]} 28. Rd4+ {[%clk 0:00:38.8]} 28... Bd7 {[%clk 0:00:54.9]} 29. g4 {[%clk
0:00:23]} 29... Qh4+ {[%clk 0:00:53.4]} 30. Kg2 {[%clk 0:00:21.5]} 30... Ke7
{[%clk 0:00:52]} 31. Qf6+ {[%clk 0:00:18.9]} 31... Qxf6 {[%clk 0:00:51.1]} 32.
exf6+ {[%clk 0:00:18.9]} 32... Kxf6 {[%clk 0:00:52]} 33. Rxd7 {[%clk 0:00:18.8]}
33... Rg8 {[%clk 0:00:50.6]} 34. Kf3 {[%clk 0:00:18.5]} 34... Rg5 {[%clk
0:00:50.3]} 35. Rxc7 {[%clk 0:00:18.1]} 35... Rd5 {[%clk 0:00:50]} 36. Rxb7
{[%clk 0:00:17.4]} 36... Ra5 {[%clk 0:00:50.9]} 37. a3 {[%clk 0:00:17.1]} 37...
a6 {[%clk 0:00:49.1]} 38. Ra7 {[%clk 0:00:15.7]} 38... Ra4 {[%clk 0:00:45.8]}
39. Rxa6 {[%clk 0:00:15.5]} 39... Rd4 {[%clk 0:00:43.6]} 40. Rc6 {[%clk
0:00:12.8]} 40... Rd7 {[%clk 0:00:42.9]} 41. Rc4 {[%clk 0:00:12.4]} 41... Rb7
{[%clk 0:00:42.4]} 42. Rf4+ {[%clk 0:00:12.2]} 42... Ke7 {[%clk 0:00:41.5]} 43.
b3 {[%clk 0:00:12.1]} 43... Rb6 {[%clk 0:00:40.2]} 44. a4 {[%clk 0:00:11.9]}
44... Rb7 {[%clk 0:00:39.3]} 45. Ke3 {[%clk 0:00:12]} 45... Ra7 {[%clk
0:00:38.6]} 46. g5 {[%clk 0:00:12.1]} 46... Kd6 {[%clk 0:00:39.5]} 47. g6 {[%clk
0:00:12]} 47... fxg6 {[%clk 0:00:39.2]} 48. Bxg6 {[%clk 0:00:11.8]} 48... e5
{[%clk 0:00:40.1]} 49. Rf6+ {[%clk 0:00:11.4]} 49... Kd5 {[%clk 0:00:40.5]} 50.
Be4+ {[%clk 0:00:10.7]} 50... Kc5 {[%clk 0:00:40.7]} 51. Rc6+ {[%clk 0:00:10.5]}
51... Kb4 {[%clk 0:00:40.8]} 52. Rc4+ {[%clk 0:00:09.4]} 52... Ka3 {[%clk
0:00:40]} 53. Kd2 {[%clk 0:00:08.5]} 53... Rd7+ {[%clk 0:00:37.3]} 54. Kc3
{[%clk 0:00:08.6]} 54... Re7 {[%clk 0:00:36.8]} 55. Rc5 {[%clk 0:00:07.9]} 55...
Ka2 {[%clk 0:00:35.3]} 56. a5 {[%clk 0:00:07.8]} 56... Ka3 {[%clk 0:00:35]} 57.
a6 {[%clk 0:00:07.7]} 57... Ka2 {[%clk 0:00:34.6]} 58. Ra5+ {[%clk 0:00:07]}
58... Kb1 {[%clk 0:00:34.1]} 59. a7 {[%clk 0:00:07]} 59... Rxa7 {[%clk
0:00:32.4]} 60. Rxa7 {[%clk 0:00:06.9]} 60... Kc1 {[%clk 0:00:32.2]} 61. Ra1#
{[%clk 0:00:07]} 1-0